fUST/lending_fUST_20250208
["ID","MTS","AMOUNT","RATE_DAILY","PERIOD"]
[352198661,1738991455979,-500.0,0.00011369,2]
[352198662,1738991455994,-500.0,0.00011369,2]
[352198663,1738991456008,-320.47846163,0.00011369,2]
[352198664,1738991456022,-500.0,0.00011369,2]
[352198665,1738991456033,-287.34086969,0.00011369,2]
[352198666,1738991456046,-151.0,0.00011369,2]
[352198667,1738991456059,-503.62342582,0.00011369,2]
[352198668,1738991456073,-500.0,0.00011369,2]
[352198669,1738991456086,-500.0,0.00011369,2]
[352198670,1738991456101,-500.0,0.00011369,2]
[352198671,1738991456116,-500.0,0.00011369,2]
[352198672,1738991456130,-500.0,0.00011369,2]
[352198673,1738991456141,-1290.85,0.00011369,2]
[352198674,1738991456152,-500.0,0.00011369,2]
[352198675,1738991456167,-500.0,0.00011369,2]
[352198676,1738991456187,-151.0,0.00011369,2]
[352198677,1738991456207,-500.0,0.00011369,2]
[352198678,1738991456221,-500.0,0.00011369,2]
[352198679,1738991456234,-500.0,0.00011369,2]
[352198680,1738991456250,-1322.28,0.00011369,2]
[352198681,1738991456263,-954.32,0.00011369,2]
[352198682,1738991456274,-500.0,0.00011369,2]
[352198683,1738991456287,-614.15177362,0.00011369,2]
[352198684,1738991456300,-500.0,0.00011369,2]
[352198685,1738991456311,-263.770372,0.00011369,2]
[352198686,1738991456323,-504.96310756,0.00011369,2]
[352198687,1738991456336,-263.770372,0.00011369,2]
[352198688,1738991456348,-500.0,0.00011369,2]
[352198689,1738991456360,-500.0,0.00011369,2]
[352198690,1738991456372,-643.9369336,0.00011369,2]
[352198691,1738991456384,-500.0,0.00011369,2]
[352198692,1738991456396,-500.0,0.00011369,2]
[352198693,1738991456409,-502.50574112,0.00011369,2]
[352198694,1738991456422,-890.41,0.00011369,2]
[352198695,1738991456434,-502.27204048,0.00011369,2]
[352198696,1738991456446,-500.0,0.00011369,2]
[352198697,1738991456458,-500.0,0.00011369,2]
[352198698,1738991456469,-500.0,0.00011369,2]
[352198699,1738991456481,-444.81188334,0.00011369,2]
[352198700,1738991456495,-504.27024746,0.00011369,2]
[352198701,1738991456507,-500.0,0.00011369,2]
[352198702,1738991456519,-332.7219792,0.00011369,2]
[352198703,1738991456531,-503.72872154,0.00011369,2]
[352198704,1738991456543,-500.0,0.00011369,2]
[352198705,1738991456554,-500.0,0.00011369,2]
[352198706,1738991456566,-579.96,0.00011369,2]
[352198707,1738991456578,-500.0,0.00011369,2]
[352198708,1738991456590,-500.0,0.00011369,2]
[352198709,1738991456602,-151.0,0.00011369,2]
[352198710,1738991456615,-500.0,0.00011369,2]
[352198711,1738991456628,-500.0,0.00011369,2]
[352198712,1738991456640,-247.340406,0.00011369,2]
[352198713,1738991456652,-501.91577813,0.00011369,2]
[352198714,1738991456664,-500.0,0.00011369,2]
[352198715,1738991456676,-500.0,0.00011369,2]
[352198716,1738991456688,-151.0,0.00011369,2]
[352198717,1738991456700,-519.856791,0.00011369,2]
[352198718,1738991456712,-504.71221909,0.00011369,2]
[352198719,1738991456725,-519.856791,0.00011369,2]
[352198720,1738991456737,-1275.48,0.00011369,2]
[352198721,1738991456750,-500.0,0.00011369,2]
[352198722,1738991456762,-549.94390632,0.00011369,2]
[352198723,1738991456773,-2653.48,0.00011369,2]
[352198724,1738991456786,-500.0,0.00011369,2]
[352198725,1738991456798,-152.525797,0.00011369,2]
[352198726,1738991456810,-1536.82,0.00011369,2]
[352198727,1738991456822,-500.0,0.00011369,2]
[352198728,1738991456835,-500.0,0.00011369,2]
[352198729,1738991456847,-500.0,0.00011369,2]
[352198730,1738991456860,-866.25,0.00011369,2]
[352198731,1738991456872,-500.0,0.00011369,2]
[352198732,1738991456883,-500.0,0.00011369,2]
[352198733,1738991456895,-658.86,0.00011369,2]
[352198734,1738991456908,-500.0,0.00011369,2]
[352198735,1738991456921,-500.0,0.00011369,2]
[352198736,1738991456935,-939.42,0.00011369,2]
[352198737,1738991456948,-500.0,0.00011369,2]
[352198738,1738991456961,-1115.0,0.00011369,2]
[352198739,1738991456972,-500.0,0.00011369,2]
[352198740,1738991456985,-500.0,0.00011369,2]
[352198741,1738991456998,-500.0,0.00011369,2]
[352198742,1738991457010,-596.66,0.00011369,2]
[352198743,1738991457022,-1320.42,0.00011369,2]
[352198744,1738991457034,-500.0,0.00011369,2]
[352198745,1738991457047,-500.0,0.00011369,2]
[352198746,1738991457059,-1026.56,0.00011369,2]
[352198747,1738991457071,-151.0,0.00011369,2]
[352198748,1738991457083,-151.0,0.00011369,2]
[352198749,1738991457095,-500.0,0.00011369,2]
[352198750,1738991457107,-2631.16,0.00011369,2]
[352198751,1738991457119,-365.37301356,0.00011369,2]
[352198752,1738991457131,-500.0,0.00011369,2]
[352198753,1738991457143,-500.0,0.00011369,2]
[352198754,1738991457156,-862.34,0.00011369,2]
[352198755,1738991457168,-500.0,0.00011369,2]
[352198756,1738991457180,-500.0,0.00011369,2]
[352198757,1738991457193,-500.0,0.00011369,2]
[352198758,1738991457206,-1146.43,0.00011369,2]
[352198759,1738991457219,-500.0,0.00011369,2]
[352198760,1738991457228,-500.0,0.00011369,2]
[352198761,1738991457238,-658.88,0.00011369,2]
[352198762,1738991457437,-1093.05,0.00011369,2]
[352198763,1738991457458,-500.0,0.00011369,2]
[352198764,1738991457468,-500.0,0.00011369,2]
[352198765,1738991457478,-538.64,0.00011369,2]
[352198766,1738991457487,-10260.36,0.00011369,2]
[352198767,1738991457500,-500.0,0.00011369,2]
[352198768,1738991457510,-39166.59,0.00011369,2]
[352198769,1738991457519,-3134.99,0.00011369,2]
[352198770,1738991457529,-396.1,0.00011369,2]
[352198771,1738991457539,-505.08,0.00011369,2]
[352198772,1738991457548,-500.0,0.00011369,2]
[352198773,1738991457558,-500.0,0.00011369,2]
[352198774,1738991457567,-500.0,0.00011369,2]
[352198775,1738991457576,-500.0,0.00011369,2]
[352198776,1738991457585,-1635.22,0.00011369,2]
[352198777,1738991457594,-1213.68923847,0.00011369,2]
[352198778,1738991458310,-769.6,0.00010848,2]
[352198784,1738992395417,10000.0,0.0001899,120]
[352198804,1738992632376,-419.43208415,9.402e-05,2]
[352198805,1738992632434,-1605.67874921,9.402e-05,2]
[352198806,1738992632444,-3129.50168936,9.497e-05,2]
[352198815,1738992638123,-1870.49831064,9.497e-05,2]
[352198816,1738992638134,-250.0,9.907e-05,2]
[352198817,1738992638144,-854.754384,9.987e-05,2]
[352198818,1738992638154,-115.06730536,0.00010857,2]
[352198839,1738993624341,898.86,0.00014,30]
[352198840,1738993626181,447.84,0.00014,30]
[352198857,1738993832981,-303.6813169,8.908e-05,2]
[352198858,1738993832991,-201.61706132,8.998e-05,2]
[352198859,1738993833006,-2818.28446965,8.998e-05,2]
[352198860,1738993833239,-1980.09846903,8.998e-05,2]
[352198861,1738993833457,-3251.572211,9.337e-05,2]
[352198862,1738993833467,-300.0,9.848e-05,2]
[352198863,1738993833478,-3724.41189262,9.849e-05,2]
[352198899,1738993838363,-462.83688589,9.849e-05,2]
[352198902,1738993838374,-12496.08838957,9.849e-05,2]
[352198904,1738993838386,-622.862856,9.849e-05,2]
[352198906,1738993838399,-7593.79997592,9.849e-05,2]
[352198908,1738993838408,-2013.7826987,0.00010814,2]
[352198910,1738993838418,-500.0,0.00010829,2]
[352198912,1738993838427,-453.78598865,0.00010829,2]
[352198914,1738993838437,-500.0,0.00010829,2]
[352198916,1738993838446,-500.0,0.00010829,2]
[352198918,1738993838455,-500.0,0.00010829,2]
[352198921,1738993838465,-170.0,0.00010829,2]
[352198922,1738993838475,-500.0,0.00010829,2]
[352198923,1738993838486,-500.0,0.00010829,2]
[352198924,1738993838495,-500.0,0.00010829,2]
[352198925,1738993838504,-500.0,0.00010829,2]
[352198927,1738993838514,-500.0,0.00010829,2]
[352198928,1738993838524,-500.0,0.00010829,2]
[352198929,1738993838533,-500.0,0.00010829,2]
[352198930,1738993838543,-237.16187037,0.00010829,2]
[352198931,1738993838552,-197.94332354,0.00010829,2]
[352198932,1738993838562,-500.0,0.00010829,2]
[352198933,1738993838571,-500.0,0.00010829,2]
[352198934,1738993838581,-500.0,0.00010829,2]
[352198935,1738993838590,-575.75289495,0.00010829,2]
[352198936,1738993838599,-500.0,0.00010829,2]
[352198937,1738993838608,-500.0,0.00010829,2]
[352198938,1738993838618,-500.0,0.00010829,2]
[352198939,1738993838628,-500.0,0.00010829,2]
[352198940,1738993838638,-500.0,0.00010829,2]
[352198941,1738993838647,-500.0,0.00010829,2]
[352198942,1738993838657,-500.0,0.00010829,2]
[352198943,1738993838666,-296.65179044,0.00010829,2]
[352198944,1738993838676,-500.0,0.00010829,2]
[352198945,1738993838689,-500.0,0.00010829,2]
[352198946,1738993838698,-500.0,0.00010829,2]
[352198947,1738993838708,-500.0,0.00010829,2]
[352198948,1738993838717,-500.0,0.00010829,2]
[352198949,1738993838727,-1466.03379019,0.0001083,2]
[352198950,1738993838736,-420.0,0.00010833,2]
[352198951,1738993838746,-57659.66359824,0.00010847,2]
[352198952,1738993838757,-180.92926019,0.00010858,2]
[352198953,1738993838769,-3000.0,0.00010858,2]
[352198954,1738993838780,-1164.1680711,0.00010947,6]
[352198955,1738993838789,-500.0,0.00010957,2]
[352198956,1738993838799,-182.06054142,0.00010957,2]
[352198957,1738993838808,-288.22992004,0.00010957,2]
[352198958,1738993838817,-243.54332173,0.00010957,2]
[352198959,1738993838827,-500.0,0.00010958,2]
[352198960,1738993838837,-159.58510497,0.00010958,2]
[352198961,1738993838846,-500.0,0.00010958,2]
[352198962,1738993838856,-500.0,0.00010958,2]
[352198963,1738993838866,-529.56420561,0.00010958,2]
[352198964,1738993838875,-500.0,0.00010958,2]
[352198965,1738993838885,-437.11816085,0.00010958,2]
[352198966,1738993838894,-500.0,0.00010958,2]
[352198967,1738993838904,-500.0,0.00010958,2]
[352198968,1738993838913,-206.53333869,0.00010958,2]
[352198969,1738993838923,-312.67526972,0.00010958,2]
[352198970,1738993838932,-184.15537675,0.00010958,2]
[352198971,1738993838945,-500.0,0.00010958,2]
[352198972,1738993838954,-500.0,0.00010958,2]
[352198973,1738993838963,-500.0,0.00010958,2]
[352198974,1738993838972,-500.0,0.00010958,2]
[352198975,1738993838982,-500.50861579,0.00010958,2]
[352198976,1738993838991,-242.222534,0.00010958,2]
[352198977,1738993839000,-500.0,0.00010958,2]
[352198978,1738993839009,-504.77192176,0.00010958,2]
[352198979,1738993839019,-500.0,0.00010958,2]
[352198980,1738993839029,-500.0,0.00010958,2]
[352198981,1738993839038,-500.0,0.00010958,2]
[352198982,1738993839047,-500.0,0.00010958,2]
[352198983,1738993839057,-500.0,0.00010958,2]
[352198984,1738993839066,-500.0,0.00010958,2]
[352198985,1738993839076,-152.87189063,0.00010958,2]
[352198986,1738993839086,-502.11845928,0.00010958,2]
[352198987,1738993839095,-501.77729455,0.00010958,2]
[352198988,1738993839105,-500.0,0.00010958,2]
[352198989,1738993839115,-500.0,0.00010958,2]
[352198990,1738993839124,-500.0,0.00010958,2]
[352198991,1738993839133,-505.16998022,0.00010958,2]
[352198992,1738993839143,-500.0,0.00010958,2]
[352198993,1738993839152,-500.0,0.00010958,2]
[352198994,1738993839162,-500.0,0.00010958,2]
[352198995,1738993839171,-507.12839574,0.00010958,2]
[352198996,1738993839180,-500.0,0.00010958,2]
[352198997,1738993839190,-500.0,0.00010958,2]
[352198998,1738993839200,-502.8092109,0.00010958,2]
[352198999,1738993839210,-403.47630691,0.00010958,2]
[352199000,1738993839219,-500.0,0.00010958,2]
[352199001,1738993839228,-514.89562728,0.00010958,2]
[352199002,1738993839237,-500.0,0.00010958,2]
[352199003,1738993839247,-500.0,0.00010958,2]
[352199004,1738993839257,-681.09,0.00010958,2]
[352199005,1738993839266,-505.15729397,0.00010958,2]
[352199006,1738993839275,-500.0,0.00010958,2]
[352199007,1738993839284,-500.0,0.00010958,2]
[352199008,1738993839294,-504.2631186,0.00010958,2]
[352199009,1738993839303,-501.1831696,0.00010958,2]
[352199010,1738993839313,-500.0,0.00010958,2]
[352199011,1738993839323,-501.39598792,0.00010958,2]
[352199012,1738993839332,-500.0,0.00010958,2]
[352199013,1738993839342,-500.0,0.00010958,2]
[352199014,1738993839351,-500.0,0.00010958,2]
[352199015,1738993839361,-500.0,0.00010958,2]
[352199016,1738993839370,-554.33101471,0.00010958,2]
[352199017,1738993839380,-500.0,0.00010958,2]
[352199018,1738993839389,-500.0,0.00010958,2]
[352199019,1738993839398,-500.0,0.00010958,2]
[352199020,1738993839407,-500.0,0.00010958,2]
[352199021,1738993839579,-500.0,0.00010958,2]
[352199022,1738993839588,-500.0,0.00010958,2]
[352199023,1738993839598,-500.0,0.00010958,2]
[352199024,1738993839607,-505.28303151,0.00010958,2]
[352199025,1738993839616,-500.0,0.00010958,2]
[352199026,1738993839625,-502.72544818,0.00010958,2]
[352199027,1738993839634,-500.70323616,0.00010958,2]
[352199028,1738993839643,-500.0,0.00010958,2]
[352199029,1738993839652,-501.80799433,0.00010958,2]
[352199030,1738993839661,-508.36614626,0.00010958,2]
[352199031,1738993839670,-500.0,0.00010958,2]
[352199032,1738993839680,-500.0,0.00010958,2]
[352199033,1738993839692,-500.0,0.00010958,2]
[352199034,1738993839701,-500.0,0.00010958,2]
[352199035,1738993839710,-516.76355915,0.00010958,2]
[352199036,1738993839719,-500.0,0.00010958,2]
[352199037,1738993839729,-500.0,0.00010958,2]
[352199038,1738993839738,-507.48494344,0.00010958,2]
[352199039,1738993839747,-500.0,0.00010958,2]
[352199040,1738993839756,-500.0,0.00010958,2]
[352199041,1738993839769,-500.0,0.00010958,2]
[352199042,1738993839779,-500.0,0.00010958,2]
[352199043,1738993839788,-500.0,0.00010958,2]
[352199044,1738993839798,-500.0,0.00010958,2]
[352199045,1738993839807,-500.0,0.00010958,2]
[352199046,1738993839816,-502.92123342,0.00010958,2]
[352199047,1738993839825,-500.0,0.00010958,2]
[352199048,1738993839835,-500.0,0.00010958,2]
[352199049,1738993839844,-502.34522757,0.00010958,2]
[352199050,1738993839854,-500.0,0.00010958,2]
[352199051,1738993839864,-500.0,0.00010958,2]
[352199052,1738993839873,-500.0,0.00010958,2]
[352199053,1738993839882,-500.75026591,0.00010958,2]
[352199054,1738993839892,-526.62461133,0.00010958,2]
[352199055,1738993839902,-500.0,0.00010958,2]
[352199056,1738993839911,-506.32281639,0.00010958,2]
[352199057,1738993839921,-500.77807512,0.00010958,2]
[352199058,1738993839930,-504.93192374,0.00010958,2]
[352199059,1738993839939,-500.0,0.00010958,2]
[352199060,1738993839948,-500.0,0.00010958,2]
[352199061,1738993839957,-502.38696587,0.00010958,2]
[352199062,1738993839967,-500.0,0.00010958,2]
[352199063,1738993839977,-500.0,0.00010958,2]
[352199064,1738993839986,-500.0,0.00010958,2]
[352199065,1738993839996,-501.84780458,0.00010958,2]
[352199066,1738993840005,-500.0,0.00010958,2]
[352199067,1738993840015,-500.0,0.00010958,2]
[352199068,1738993840025,-500.0,0.00010958,2]
[352199069,1738993840034,-500.0,0.00010958,2]
[352199070,1738993840043,-500.0,0.00010958,2]
[352199071,1738993840052,-500.0,0.00010958,2]
[352199072,1738993840061,-500.0,0.00010958,2]
[352199073,1738993840070,-500.77222656,0.00010958,2]
[352199074,1738993840079,-500.0,0.00010958,2]
[352199075,1738993840088,-500.0,0.00010958,2]
[352199076,1738993840098,-505.56373186,0.00010958,2]
[352199077,1738993840107,-500.0,0.00010958,2]
[352199078,1738993840116,-500.0,0.00010958,2]
[352199079,1738993840125,-500.0,0.00010958,2]
[352199080,1738993840134,-500.0,0.00010958,2]
[352199081,1738993840143,-500.0,0.00010958,2]
[352199082,1738993840152,-500.0,0.00010958,2]
[352199083,1738993840161,-500.0,0.00010958,2]
[352199084,1738993840170,-500.0,0.00010958,2]
[352199085,1738993840179,-500.0,0.00010958,2]
[352199086,1738993840188,-500.0,0.00010958,2]
[352199087,1738993840197,-500.0,0.00010958,2]
[352199088,1738993840206,-500.0,0.00010958,2]
[352199089,1738993840216,-501.58946071,0.00010958,2]
[352199090,1738993840225,-596.7353574,0.00010958,2]
[352199091,1738993840234,-500.0,0.00010958,2]
[352199092,1738993840243,-500.0,0.00010958,2]
[352199093,1738993840252,-500.0,0.00010958,2]
[352199095,1738993840263,-500.0,0.00010958,2]
[352199097,1738993840272,-500.0,0.00010958,2]
[352199098,1738993840282,-500.0,0.00010958,2]
[352199099,1738993840291,-500.0,0.00010958,2]
[352199100,1738993840301,-500.0,0.00010958,2]
[352199101,1738993840310,-500.0,0.00010958,2]
[352199102,1738993840319,-500.0,0.00010958,2]
[352199103,1738993840329,-500.0,0.00010958,2]
[352199104,1738993840338,-502.41518606,0.00010958,2]
[352199105,1738993840347,-500.0,0.00010958,2]
[352199106,1738993840356,-543.26,0.00010958,2]
[352199107,1738993840367,-500.0,0.00010958,2]
[352199108,1738993840383,-500.0,0.00010958,2]
[352199109,1738993840392,-500.0,0.00010958,2]
[352199110,1738993840401,-500.0,0.00010958,2]
[352199111,1738993840410,-500.0,0.00010958,2]
[352199112,1738993840420,-500.0,0.00010958,2]
[352199113,1738993840429,-500.0,0.00010958,2]
[352199114,1738993840438,-500.0,0.00010958,2]
[352199115,1738993840447,-500.0,0.00010958,2]
[352199116,1738993840457,-502.31016563,0.00010958,2]
[352199117,1738993840466,-500.0,0.00010958,2]
[352199118,1738993840475,-500.0,0.00010958,2]
[352199119,1738993840484,-500.0,0.00010958,2]
[352199120,1738993840494,-500.0,0.00010958,2]
[352199121,1738993840503,-964.31,0.00010958,2]
[352199122,1738993840513,-500.0,0.00010958,2]
[352199123,1738993840522,-500.0,0.00010958,2]
[352199124,1738993840532,-500.0,0.00010958,2]
[352199125,1738993840541,-500.0,0.00010958,2]
[352199126,1738993840550,-333.56975195,0.00010958,2]
[352199127,1738993840560,-500.0,0.00010958,2]
[352199128,1738993840570,-500.0,0.00010958,2]
[352199129,1738993840579,-500.0,0.00010958,2]
[352199130,1738993840588,-500.0,0.00010958,2]
[352199131,1738993840598,-500.0,0.00010958,2]
[352199132,1738993840607,-1086.18,0.00010958,2]
[352199133,1738993840617,-500.0,0.00010958,2]
[352199134,1738993840626,-500.0,0.00010958,2]
[352199135,1738993840636,-500.0,0.00010958,2]
[352199136,1738993840647,-500.0,0.00010958,2]
[352199137,1738993840656,-500.0,0.00010958,2]
[352199138,1738993840665,-504.46962706,0.00010958,2]
[352199139,1738993840674,-500.0,0.00010958,2]
[352199140,1738993840685,-500.0,0.00010958,2]
[352199141,1738993840696,-500.0,0.00010958,2]
[352199142,1738993840705,-500.0,0.00010958,2]
[352199143,1738993840715,-500.0,0.00010958,2]
[352199144,1738993840724,-500.0,0.00010958,2]
[352199145,1738993840735,-500.0,0.00010958,2]
[352199146,1738993840744,-500.0,0.00010958,2]
[352199147,1738993840753,-500.0,0.00010958,2]
[352199148,1738993840765,-503.20044162,0.00010958,2]
[352199149,1738993840775,-500.0,0.00010958,2]
[352199150,1738993840784,-500.0,0.00010958,2]
[352199151,1738993840793,-653.64,0.00010958,2]
[352199152,1738993840803,-335.42731859,0.00010958,2]
[352199153,1738993840812,-500.0,0.00010958,2]
[352199154,1738993840822,-504.87196526,0.00010958,2]
[352199155,1738993840832,-500.0,0.00010958,2]
[352199156,1738993840843,-500.0,0.00010958,2]
[352199157,1738993840853,-500.0,0.00010958,2]
[352199158,1738993840864,-500.0,0.00010958,2]
[352199159,1738993840874,-500.0,0.00010958,2]
[352199160,1738993840884,-500.0,0.00010958,2]
[352199161,1738993840894,-621.77635364,0.00010958,2]
[352199162,1738993840905,-505.7492854,0.00010958,2]
[352199163,1738993840916,-500.0,0.00010958,2]
[352199164,1738993840935,-500.0,0.00010958,2]
[352199165,1738993840946,-500.0,0.00010958,2]
[352199166,1738993840956,-500.0,0.00010958,2]
[352199167,1738993840966,-500.0,0.00010958,2]
[352199168,1738993840976,-500.0,0.00010958,2]
[352199169,1738993840985,-823.7,0.00010958,2]
[352199170,1738993840995,-500.0,0.00010958,2]
[352199171,1738993841004,-500.0,0.00010958,2]
[352199172,1738993841015,-500.0,0.00010958,2]
[352199173,1738993841024,-500.0,0.00010958,2]
[352199174,1738993841038,-500.0,0.00010958,2]
[352199175,1738993841047,-500.0,0.00010958,2]
[352199176,1738993841057,-500.0,0.00010958,2]
[352199177,1738993841066,-500.0,0.00010958,2]
[352199178,1738993841075,-502.40644931,0.00010958,2]
[352199179,1738993841084,-500.0,0.00010958,2]
[352199180,1738993841094,-502.52653628,0.00010958,2]
[352199181,1738993841104,-500.0,0.00010958,2]
[352199182,1738993841113,-535.58859981,0.00010958,2]
[352199183,1738993841123,-500.0,0.00010958,2]
[352199184,1738993841132,-500.0,0.00010958,2]
[352199185,1738993841142,-500.0,0.00010958,2]
[352199186,1738993841151,-500.0,0.00010958,2]
[352199187,1738993841161,-500.0,0.00010958,2]
[352199188,1738993841170,-338.56434787,0.00010958,2]
[352199189,1738993841179,-500.0,0.00010958,2]
[352199190,1738993841189,-500.0,0.00010958,2]
[352199191,1738993841198,-500.0,0.00010958,2]
[352199192,1738993841207,-500.0,0.00010958,2]
[352199193,1738993841217,-500.0,0.00010958,2]
[352199194,1738993841226,-500.0,0.00010958,2]
[352199195,1738993841235,-500.0,0.00010958,2]
[352199196,1738993841245,-466.98428487,0.00010958,2]
[352199197,1738993841254,-500.0,0.00010958,2]
[352199198,1738993841265,-977.11,0.00010958,2]
[352199199,1738993841275,-500.0,0.00010958,2]
[352199200,1738993841284,-500.0,0.00010958,2]
[352199201,1738993841294,-500.0,0.00010958,2]
[352199202,1738993841303,-500.0,0.00010958,2]
[352199203,1738993841312,-500.0,0.00010958,2]
[352199204,1738993841321,-500.0,0.00010958,2]
[352199205,1738993841330,-500.0,0.00010958,2]
[352199206,1738993841339,-500.0,0.00010958,2]
[352199207,1738993841349,-500.0,0.00010958,2]
[352199208,1738993841359,-500.0,0.00010958,2]
[352199209,1738993841368,-500.0,0.00010958,2]
[352199210,1738993841377,-500.0,0.00010958,2]
[352199211,1738993841387,-500.0,0.00010958,2]
[352199212,1738993841396,-500.0,0.00010958,2]
[352199213,1738993841405,-500.0,0.00010958,2]
[352199214,1738993841414,-500.0,0.00010958,2]
[352199215,1738993841423,-500.0,0.00010958,2]
[352199216,1738993841432,-500.0,0.00010958,2]
[352199217,1738993841442,-500.0,0.00010958,2]
[352199218,1738993841451,-500.0,0.00010958,2]
[352199219,1738993841460,-500.0,0.00010958,2]
[352199220,1738993841469,-501.86018333,0.00010958,2]
[352199221,1738993841479,-500.0,0.00010958,2]
[352199222,1738993841487,-500.0,0.00010958,2]
[352199223,1738993841497,-1328.49,0.00010958,2]
[352199224,1738993841506,-500.0,0.00010958,2]
[352199225,1738993841518,-500.0,0.00010958,2]
[352199226,1738993841526,-500.0,0.00010958,2]
[352199227,1738993841535,-500.0,0.00010958,2]
[352199228,1738993841545,-500.0,0.00010958,2]
[352199229,1738993841554,-1361.06,0.00010958,2]
[352199230,1738993841563,-267.20093725,0.00010958,2]
[352199231,1738993841589,-232.79906275,0.00010958,2]
[352199232,1738993841598,-500.0,0.00010958,2]
[352199233,1738993841608,-500.0,0.00010958,2]
[352199234,1738993841617,-500.0,0.00010958,2]
[352199235,1738993841627,-500.0,0.00010958,2]
[352199236,1738993841637,-500.0,0.00010958,2]
[352199237,1738993841646,-601.41,0.00010958,2]
[352199238,1738993841656,-500.0,0.00010958,2]
[352199239,1738993841666,-500.0,0.00010958,2]
[352199240,1738993841676,-500.0,0.00010958,2]
[352199241,1738993841686,-500.0,0.00010958,2]
[352199242,1738993841699,-500.0,0.00010958,2]
[352199243,1738993841709,-500.0,0.00010958,2]
[352199244,1738993841719,-500.0,0.00010958,2]
[352199245,1738993841729,-500.47673277,0.00010958,2]
[352199246,1738993841739,-500.0,0.00010958,2]
[352199247,1738993841749,-500.0,0.00010958,2]
[352199248,1738993841759,-500.0,0.00010958,2]
[352199249,1738993841771,-500.0,0.00010958,2]
[352199250,1738993841781,-125.95255829,0.00010958,2]
[352199251,1738993841793,-374.04744171,0.00010958,2]
[352199252,1738993841802,-518.40883671,0.00010958,2]
[352199253,1738993841811,-500.0,0.00010958,2]
[352199254,1738993841820,-500.0,0.00010958,2]
[352199255,1738993841830,-501.73149656,0.00010958,2]
[352199256,1738993841839,-500.0,0.00010958,2]
[352199257,1738993841849,-500.0,0.00010958,2]
[352199258,1738993841859,-500.0,0.00010958,2]
[352199259,1738993841868,-500.0,0.00010958,2]
[352199260,1738993841878,-500.0,0.00010958,2]
[352199261,1738993841887,-500.0,0.00010958,2]
[352199262,1738993841896,-500.0,0.00010958,2]
[352199263,1738993841905,-500.0,0.00010958,2]
[352199264,1738993841916,-500.0,0.00010958,2]
[352199265,1738993841925,-500.0,0.00010958,2]
[352199266,1738993841934,-500.0,0.00010958,2]
[352199267,1738993841943,-500.0,0.00010958,2]
[352199268,1738993841953,-500.0,0.00010958,2]
[352199269,1738993841962,-500.0,0.00010958,2]
[352199270,1738993841972,-500.0,0.00010958,2]
[352199271,1738993841982,-500.0,0.00010958,2]
[352199272,1738993841991,-500.0,0.00010958,2]
[352199273,1738993842001,-500.0,0.00010958,2]
[352199274,1738993842011,-367.57129487,0.00010958,2]
[352199275,1738993842020,-595.65875474,0.00010958,2]
[352199276,1738993842030,-500.0,0.00010958,2]
[352199277,1738993842040,-500.0,0.00010958,2]
[352199278,1738993842050,-500.0,0.00010958,2]